Cogmind - Beta 16.1 @@@ ROGUE MODE // 2026.03.22 @ 03:29:12 Player: Microwavium Result: Destroyed by Y-54 Guardian with Gatling Laser Performance ------------- Evolutions (3) 1500 Regions Visited (5) 1000 Robots Destroyed (36) 180 Value Destroyed (1112) 1112 Prototype IDs (2) 40 Alien Tech Used (0) 0 Bonus (0) 0 TOTAL SCORE: 3832 Bonus ------- None Cogmind --------- Core Integrity 0/700 Matter 50/300 Energy 100/100 System Corruption 0% Temperature Cool (30) Movement Core (100) Ox1 Location -7/Factory Parts ------- > --- POWER (2) -------- (None) > --- PROPULSION (3) --- (None) > --- UTILITY (4) ------ Small Storage Unit Improved Terrain Scan Processor > --- WEAPON (4) ------- (None) > --- INVENTORY (8) ---- Improved Heat Sink Peak State ------------ > --- POWER ------------ Light Ion Engine Light Ion Engine > --- PROPULSION ------- Light Treads Light Treads > --- UTILITY ---------- Small Storage Unit Medium Battery Medium Matter Pod Light Armor Plating > --- WEAPON ----------- Enhanced Autogun Enhanced Autogun Flak Cannon > --- INVENTORY -------- Heat Sink Improved Heat Sink Improved Sensor Array Flak Cannon Grenade Launcher Hammer [Rating: 20] Favorites ----------- Power Ion Engine Engine Ion Engine Propulsion Light Treads Treads Light Treads Utility Small Storage Unit Device Improved Sensor Array Storage Small Storage Unit Processor Improved Terrain Scan Processor Protection Light Armor Plating Weapon Enhanced Autogun Energy Gun Small Laser Ballistic Gun Enhanced Autogun Ballistic Cannon Flak Cannon Launcher Grenade Launcher Impact Weapon Hammer Build | -11 -10 -9 -9 -8 -7 ------- Run | Yrd Mat Mat Min Mat Fac Slots Evolved 6 | . . 2 . 2 2 Power 1 | . . 1 . . . Propulsion 1 | . . . . . 1 Utility 2 | . . . . 2 . Weapon 2 | . . 1 . . 1 Parts Attached 37 | 6 1 10 . 11 9 Power 6 | 1 . 2 . 3 . Engine 6 | 1 . 2 . 3 . Core . | . . . . . . Reactor . | . . . . . . Propulsion 4 | 2 . 2 . . . Treads 4 | 2 . 2 . . . Leg . | . . . . . . Wheel . | . . . . . . Hover . | . . . . . . Flight . | . . . . . . Utility 9 | 1 1 1 . 2 4 Device 2 | . . . . 1 1 Storage 5 | 1 1 . . 1 2 Processor 1 | . . . . . 1 Hackware . | . . . . . . Protection 1 | . . 1 . . . Artifact . | . . . . . . Weapon 18 | 2 . 5 . 6 5 Energy Gun 3 | . . 1 . 2 . Energy Cannon . | . . . . . . Ballistic Gun 9 | 2 . 2 . 1 4 Ballistic Cannon 4 | . . 2 . 1 1 Launcher 1 | . . . . 1 . Special Weapon . | . . . . . . Impact Weapon 1 | . . . . 1 . Slashing Weapon . | . . . . . . Piercing Weapon . | . . . . . . Special Melee Weapon . | . . . . . . Unidentified Prototypes 2 | . . 1 . 1 . Parts Lost 26 | . . 2 . 17 7 Power 4 | . . 1 . 3 . Propulsion 3 | . . 1 . 2 . Utility 6 | . . . . 4 2 Weapon 13 | . . . . 8 5 Highest Loss Streak 9 | . . 2 . 9 6 To Critical Strikes . | . . . . . . Average Backups 4 | 1 2 5 8 5 1 Power . | . . . . . . Propulsion . | . . . . . . Utility 2 | . . 3 5 2 1 Weapon 2 | 1 2 2 3 2 . Tool/Special . | . . . . . . Unused Backups 5 | . . 2 . . 3 Power . | . . . . . . Propulsion . | . . . . . . Utility 4 | . . 1 . . 3 Weapon 1 | . . 1 . . . Tool/Special . | . . . . . . Average Slot Usage (%) 75 | . 95 77 100 66 24 Engine 9 | . 14 4 22 10 . Treads 17 | . 28 18 22 10 . Storage 19 | . 23 17 11 21 12 Protection 2 | . . 4 11 1 . Energy Gun 2 | . . 3 . 3 . Ballistic Gun 17 | . 28 20 22 7 2 Ballistic Cannon 4 | . . 8 11 6 . Peak Build Rating 20 | 6 7 18 18 20 14 Average Rating 10 | 3 6 13 18 13 6 On Entrance 8 | . 6 7 18 18 1 Avg Prop Armor Cover (%) 15 | . . 15 . . . Naked Turns . | . . . . . . Heaviest Build 33 | 13 15 26 26 33 15 Greatest Support 40 | 40 40 40 40 40 3 Greatest Overweight (x) 7 | . . 6 . 7 4 Average Overweight (x) . | . . . . . 2 Largest Inventory Capacity 8 | 8 8 8 8 8 8 Average Capacity 7 | 6 8 8 8 8 7 Most Carried 8 | 5 4 8 8 8 5 Average Carried 4 | 1 2 5 8 5 1 Final Capacity 8 | 8 8 8 8 8 8 Final Carried 8 | 1 4 8 8 2 1 Class Distribution -------------------- 51% | Mutant 20% | Gunner 13% | Scavenger-Tank 8% | Tank 6% | Scavenger-Gunner Dominant Class ---------------- Mutant | -10/Materials Gunner | -9/Materials Scavenger-Tank | -9/Mines Mutant | -8/Materials Mutant | -7/Factory Resources | -11 -10 -9 -9 -8 -7 ----------- Run | Yrd Mat Mat Min Mat Fac Matter Collected 1157 | 222 112 411 58 354 . Remotely . | . . . . . . Salvage Created 1079 | . 94 579 58 348 . Parts 64 | . 4 38 2 20 . Haulers Intercepted . | . . . . . . Recyclers Shooed 4 | . 1 1 . 2 . Parts Field Recycled . | . . . . . . Retrieved Matter . | . . . . . . Parts Self-Destructed . | . . . . . . Prevented . | . . . . . . Parts Restored . | . . . . . . Kills | -11 -10 -9 -9 -8 -7 ------- Run | Yrd Mat Mat Min Mat Fac Combat Hostiles Destroyed 29 | . 2 17 2 8 . Melee 1 | . . . . 1 . Guns 16 | . 2 10 2 2 . Cannons 8 | . . 7 . 1 . AOE 3 | . . . . 3 . Classes Destroyed 7 | . 1 3 . 3 . Builder 1 | . . . . 1 . Recycler 1 | . . . . 1 . Operator 1 | . . . . 1 . Watcher 4 | . . 2 . 2 . Swarmer 6 | . . 3 . 3 . Grunt 19 | . 2 10 2 5 . Sentry 4 | . . 4 . . . Best Kill Streak 6 | . 2 6 1 4 . Combat Bots Only 5 | . 2 5 1 3 . Max Kills in Single Turn 2 | . 1 1 1 2 . Gunslinging . | . . . . . . Exploded 2 | . . . . 2 . Melee 1 | . . . . 1 . Uniques/NPCs Destroyed . | . . . . . . Combat | -11 -10 -9 -9 -8 -7 -------- Run | Yrd Mat Mat Min Mat Fac Hostile Shots Fired 518 | . 30 72 12 186 218 Missed 163 | . 4 19 5 55 80 Hits 355 | . 26 53 7 131 138 Projectile 355 | . 26 53 7 131 138 AOE 1 | . . . . . 1 Critical Strikes 14 | . 2 2 1 7 2 Damage Taken 4290 | . 311 627 104 1754 1494 Core 1223 | . 54 78 18 367 706 Absorbed by Shields . | . . . . . . Core Remaining (%) 71 | 100 78 . 76 33 . Volleys Fired 102 | . 16 41 8 31 6 Largest 3 | . 2 3 3 3 3 Hottest 107 | . 40 97 87 107 75 Shots Fired 252 | . 32 118 24 67 11 Gun 183 | . 32 81 16 46 8 Cannon 66 | . . 37 8 18 3 Launcher 3 | . . . . 3 . Special . | . . . . . . Kinetic 221 | . 32 107 24 47 11 Thermal 11 | . . 11 . . . Explosive 3 | . . . . 3 . Electromagnetic 17 | . . . . 17 . Robot Hit Streak 9 | . 9 8 5 6 4 Robot Miss Streak 11 | . 6 11 8 11 8 Penetration Max . | . . . . . . Secondary Targets 2 | . 1 1 . . . Max Gunslinging Chain 1 | . 1 1 . . . Shots Hit Robots 151 | . 20 65 14 43 9 Core Hits 99 | . 6 44 7 37 5 Critical Kills . | . . . . . . Critical Parts Destroyed . | . . . . . . Critical Strikes . | . . . . . . Melee Attacks 9 | . . . . 9 . Impact 9 | . . . . 9 . Slashing . | . . . . . . Piercing . | . . . . . . Sneak Attacks . | . . . . . . Combat Hostiles . | . . . . . . Follow-up Attacks . | . . . . . . Damage Inflicted 3035 | . 225 1056 312 1272 170 Guns 1374 | . 225 534 177 335 103 Cannons 1022 | . . 522 135 298 67 Explosions 470 | . . . . 470 . Melee 169 | . . . . 169 . Ramming . | . . . . . . Kinetic 2088 | . 225 958 312 423 170 Thermal 314 | . . 98 . 216 . Explosive 254 | . . . . 254 . Electromagnetic 210 | . . . . 210 . Impact 169 | . . . . 169 . Slashing . | . . . . . . Piercing . | . . . . . . Highest Corruption 1 | . . . . 1 . Average Corruption 1 | . . . . 1 . Corruption Purged . | . . . . . . Corruption Blocked . | . . . . . . Effects 2 | . . . . 2 . Message Errors 1 | . . . . 1 . Parts Rejected 1 | . . . . 1 . Overload Shots . | . . . . . . Overflow Damage 44 | . . . . 44 . Projectiles . | . . . . . . Explosions 43 | . . . . 43 . Melee 1 | . . . . 1 . Knockbacks 23 | . . 10 6 6 1 Impact 1 | . . . . 1 . Kinetic 21 | . . 9 6 5 1 Secondary 1 | . . 1 . . . Self-Inflicted Damage 32 | . . . . 32 . Shots 1 | . . . . 1 . Rammed . | . . . . . . Targets Rammed . | . . . . . . Kicked . | . . . . . . Crushed . | . . . . . . Highest Temperature 336 | . 34 218 272 336 21 Average Temperature 93 | . 15 60 138 140 10 Received Heat Transfer 2022 | . 213 240 75 873 621 Effects 1 | . . . . 1 . Shutdowns 1 | . . . . 1 . Siege Activations . | . . . . . . Martial Activations . | . . . . . . Shielding Activations . | . . . . . . Robots Disrupted . | . . . . . . Combat Hostiles . | . . . . . . Robots Corrupted 1 | . . . . 1 . Combat Hostiles 1 | . . . . 1 . Parts Fried 1 | . . . . 1 . Impact Corruptions 1 | . . . . 1 . Robots Melted . | . . . . . . Combat Hostiles . | . . . . . . Parts Melted . | . . . . . . Heat Transferred 375 | . . 225 . 150 . Parts Sabotaged . | . . . . . . Parts Stolen . | . . . . . . Parts Stripped . | . . . . . . Power Chain Reactions 1 | . . . . 1 . Alert | -11 -10 -9 -9 -8 -7 ------- Run | Yrd Mat Mat Min Mat Fac Maximum Alert Level 1 | . . 1 . . . Low Security (%) 96 | 100 100 89 100 100 100 Level 1 3 | . . 10 . . . Level 2 . | . . . . . . Level 3 . | . . . . . . Level 4 . | . . . . . . Level 5 . | . . . . . . High Security . | . . . . . . Max Security . | . . . . . . Peak Influence 243 | . 40 243 136 169 35 Initial 91 | . . . 91 44 35 Average 55 | . 5 90 115 92 8 Influence Increases 918 | . 54 444 65 355 . Destroy 0b10 Robot/C 580 | . 40 340 40 160 . Destroy 0b10 Robot/NC 35 | . . 10 . 25 . Destroy Leader 138 | . 10 84 10 34 . Successful Hack 14 | . 4 10 . . . Disable Machine 15 | . . . . 15 . Destroy Structure 31 | . . . . 31 . Lose Combat Pursuer 105 | . . . 15 90 . Influence Decreases 918 | . 54 209 184 392 79 Entered New Map 260 | . . . 144 72 44 Time Decay 468 | . 54 189 40 150 35 Lost Part 190 | . . 20 . 170 . Squads Dispatched 9 | . 4 3 . 2 . Investigation 3 | . 1 2 . . . Extermination . | . . . . . . Reinforcement 6 | . 3 1 . 2 . Assault . | . . . . . . Garrison . | . . . . . . Intercept . | . . . . . . Searches Triggered . | . . . . . . Construction Impeded 1 | . . . . 1 . Haulers Reinforced . | . . . . . . Active Scanning Responses . | . . . . . . Cargo Convoy Interrupts . | . . . . . . Stealth | -11 -10 -9 -9 -8 -7 --------- Run | Yrd Mat Mat Min Mat Fac Distress Signals 2 | . . 1 . 1 . Communications Jammed . | . . . . . . Distress Signals . | . . . . . . Times Spotted 63 | . 8 19 2 28 6 Peak Tracking Total 8 | . 3 4 2 8 6 Tactical Retreats 4 | . . . 1 3 . Traps | -11 -10 -9 -9 -8 -7 ------- Run | Yrd Mat Mat Min Mat Fac Traps Triggered 1 | . . . . 1 . Indirectly . | . . . . . . Trap Hack Attempts . | . . . . . . Triggered . | . . . . . . Disarmed . | . . . . . . Reprogrammed . | . . . . . . Reused . | . . . . . . Traps Extracted . | . . . . . . Installed . | . . . . . . Triggered . | . . . . . . Machines | -11 -10 -9 -9 -8 -7 ---------- Run | Yrd Mat Mat Min Mat Fac Machines Disabled 1 | . . . . 1 . Max in Single Turn 1 | . . . . 1 . Machines Repaired . | . . . . . . Machines Dismantled . | . . . . . . Machines Sabotaged . | . . . . . . Overloaded Fab Kills . | . . . . . . Hacking | -11 -10 -9 -9 -8 -7 --------- Run | Yrd Mat Mat Min Mat Fac Machines Accessed 3 | . 1 2 . . . Terminals 2 | . 1 1 . . . Fabricators . | . . . . . . Repair Stations . | . . . . . . Recycling Units . | . . . . . . Scanalyzers 1 | . . 1 . . . Garrison Access . | . . . . . . Total Hacks 12 | . 4 8 . . . Successful 9 | . 3 6 . . . Failed 3 | . 1 2 . . . Catastrophic 1 | . . 1 . . . Database Lockouts . | . . . . . . Manual . | . . . . . . Terminals 8 | . 4 4 . . . Fabricators . | . . . . . . Repair Stations . | . . . . . . Recycling Units . | . . . . . . Scanalyzers 4 | . . 4 . . . Garrison Access . | . . . . . . Terminal Hacks 6 | . 3 3 . . . Record 2 | . 1 1 . . . Alert Level 1 | . . 1 . . . Dispatch Records 1 | . 1 . . . . Hauler Manifests 1 | . 1 . . . . Registered Components 1 | . . 1 . . . Fabricator Hacks . | . . . . . . Repair Station Hacks . | . . . . . . Recycling Unit Hacks . | . . . . . . Scanalyzer 3 | . . 3 . . . Insert Component 2 | . . 2 . . . Analyze 1 | . . 1 . . . Garrison Access Hacks . | . . . . . . Unauthorized Hacks . | . . . . . . Terminals . | . . . . . . Fabricators . | . . . . . . Repair Stations . | . . . . . . Recycling Units . | . . . . . . Scanalyzers . | . . . . . . Garrison Access . | . . . . . . Data Cores Recovered . | . . . . . . Used . | . . . . . . Hacking Detections 3 | . 1 2 . . . Full Trace Events 2 | . . 2 . . . Feedback Events . | . . . . . . Feedback Blocked . | . . . . . . Robot Schematics Acquired . | . . . . . . Robots Built . | . . . . . . Authchips . | . . . . . . Time . | . . . . . . Total Robot Build Rating . | . . . . . . Part Schematics Acquired 1 | . . 1 . . . Parts Built . | . . . . . . Authchips . | . . . . . . Time . | . . . . . . Total Part Build Rating . | . . . . . . Part Studies Acquired . | . . . . . . Parts Repaired . | . . . . . . Time . | . . . . . . Parts Recycled . | . . . . . . Recycled Matter . | . . . . . . Retrieved Matter . | . . . . . . Retrieved Components . | . . . . . . Parts Scanalyzed 1 | . . 1 . . . Part Schematics Acquired 1 | . . 1 . . . Parts Damaged . | . . . . . . Bothacking | -11 -10 -9 -9 -8 -7 ------------ Run | Yrd Mat Mat Min Mat Fac Used RIF Installer . | . . . . . . Robots Hacked . | . . . . . . Non-combat . | . . . . . . Combat . | . . . . . . Robot Hacks Applied . | . . . . . . Relay Couplers Released . | . . . . . . Fabnet Peak Effective % . | . . . . . . Robots Rewired . | . . . . . . Allies Hacked . | . . . . . . Hacks Repelled . | . . . . . . Allies | -11 -10 -9 -9 -8 -7 -------- Run | Yrd Mat Mat Min Mat Fac Total Allies . | . . . . . . Largest Group . | . . . . . . Highest-Rated Group . | . . . . . . Highest-Rated Ally . | . . . . . . Total Orders . | . . . . . . Ally Attacks . | . . . . . . Total Damage . | . . . . . . Kills . | . . . . . . Allies Corrupted . | . . . . . . Allies Melted . | . . . . . . Intel | -11 -10 -9 -9 -8 -7 ------- Run | Yrd Mat Mat Min Mat Fac Active Infowar (turns) 69 | . . . . . 69 Sensors 69 | . . . . . 69 Robot Analysis Total . | . . . . . . Derelict Logs Recovered . | . . . . . . Drone Launches . | . . . . . . Drone Recoveries . | . . . . . . Exploration | -11 -10 -9 -9 -8 -7 ------------- Run | Yrd Mat Mat Min Mat Fac Turns Passed 1546 | 59 426 478 87 314 182 Spaces Moved 747 | 46 234 213 43 117 94 Core 167 | 23 . 1 . 49 94 Treads 580 | 23 234 212 43 68 . Legs . | . . . . . . Wheels . | . . . . . . Hover . | . . . . . . Flight . | . . . . . . Fastest Speed 50 | 50 160 160 160 100 100 Average Speed 156 | 105 160 160 160 160 153 Slowest Speed 400 | 160 160 350 160 400 250 Overloaded Moves . | . . . . . . Propulsion Burnouts . | . . . . . . Robots Hopped . | . . . . . . Potential Cave-ins . | . . . . . . Cave-ins Triggered . | . . . . . . Exploration Rate (%) 18 | 3 40 24 20 18 3 Regions Visited 5 Branch Regions 1 Pre-discovered Areas . | . . . . . . Known Exits Taken . | . . . . . . Unknown Exits Taken 5 | 1 1 1 1 1 . Scrap Searched . | . . . . . . Spaces Dug . | . . . . . . Terrain Destroyed 26 | . . . . 26 . Melee . | . . . . . . Projectile . | . . . . . . AOE 26 | . . . . 26 . Terrain Rammed . | . . . . . . Walls Destroyed . | . . . . . . Machines Disabled . | . . . . . . Actions | -11 -10 -9 -9 -8 -7 --------- Run | Yrd Mat Mat Min Mat Fac Total 953 | 56 257 284 50 182 124 Wait 5 | . 3 . . . 2 Move 742 | 45 233 212 42 116 94 Hop . | . . . . . . Pick Up 39 | 5 4 13 . 7 10 Fast Attach 4 | 2 . 2 . . . Attach 34 | 4 1 7 . 13 9 Detach 1 | . . . . 1 . Swap 3 | . . 1 . 2 . Drop 14 | . . 8 . 3 3 Fire 102 | . 16 41 8 31 6 Melee 9 | . . . . 9 . Ram . | . . . . . . Kick . | . . . . . . Crush . | . . . . . . Escape Stasis . | . . . . . . Rewire . | . . . . . . Trap . | . . . . . . Miscellaneous . | . . . . . . Route ------- -11/Scrapyard -10/Materials (discovered 2 exits: *Mat / [*Min]) -9/Materials -9/Mines (discovered 2 exits: [*Mat x2]) -8/Materials -7/Factory History --------- Turn | Location | Event 11 | -11/Scrapyard | Discovered new exit (range 14) 60 | -11/Scrapyard | Entered Materials 61 | -10/Materials | Met a group of wandering Federalists 137 | -10/Materials | Discovered new exit (range 16) 315 | -10/Materials | Build established: Mutant 443 | -10/Materials | Discovered new exit (range 16) 486 | -10/Materials | Entered another Materials area 486 | -9/Materials | Evolved 2 slots: Power x1, Weapon x1 912 | -9/Materials | Discovered new exit (range 11) 964 | -9/Materials | Entered Mines 970 | -9/Mines | Met a Derelict bent on vengeance 994 | -9/Mines | Discovered new exit (range 8) 1018 | -9/Mines | Discovered new exit (range 12) 1051 | -9/Mines | Entered Materials 1051 | -8/Materials | Evolved 2 slots: Utility x2 1289 | -8/Materials | Lost 9 parts (2p2n1u4w) 1320 | -8/Materials | Core integrity fell below 50% 1356 | -8/Materials | Discovered new exit (range 10) 1365 | -8/Materials | Entered Factory 1365 | -7/Factory | Evolved 2 slots: Propulsion x1, Weapon x1 1387 | -7/Factory | Lost 7 parts (1p2u4w) 1534 | -7/Factory | Core integrity fell below 50% 1545 | -7/Factory | Core integrity fell below 20% 1547 | -7/Factory | Destroyed by Y-54 Guardian with Gatling Laser Last Messages --------------- K-01 Serf collects debris. U-05 Engineer builds a Wall. Hcp. Matter Pod destroyed. Hpw. Shotgun destroyed. U-05 Engineer builds a Wall. Acquired Flak Cannon. K-01 Serf collects debris. U-05 Engineer builds a Wall. G-47 Trooper knocked back. Critical hit (Burn: +37). K-01 Serf collects debris. U-05 Engineer lays Concrete. K-01 Serf collects debris. U-05 Engineer lays Concrete. Flak Cannon destroyed. U-05 Engineer lays Concrete. Critical hit (Burn: +37). U-05 Engineer lays Concrete. K-01 Serf collects debris. U-05 Engineer lays Concrete. Map ----- +----------------------------------------------------+ | ??????????????????????#+#####????????????????????? | | ??????????????????????# ????????????????????? | | ?????????????#?"" ??? # #????????????????????? | | ?????????????# "" """ # #????????????????????? | | ?????????????# "" """ # #????????????????????? | | ?????????????# S # #????????????????????? | | ?????????????# "" """ + #????????????????????? | | ?????????????# "" """ # #????????????????????? | | ???????????????"" """ # #????????????????????? | | ????????????????? # #????????????????????? | | ???????????????####+### ###??????????????????? | | ???????????????# #??????????????????? | | ?????????####### #??????????????????? | | ?? #??????????????????? | | ??????########## #??????????????????? | | ??????#! # #??????????????????? | | ??????# """" # ##########??????????????????? | | ??????# ""F" # #???????????????????????????? | | ??????# # #??###??????????????????????? | | ??????# !! / ####Y#########??????????????? | | ??????# ! # # """ #??????????????? | | ??????# ! # # "T" #??????????????? | | ??????# ! # # #??????????????? | | ??????# # # !#??????????????? | | ??????#/######## # g| #??????????????? | | ????? #??????# # ug@ #??????????????? | | ??? #??????# + g #??????????????? | | ?? ? #??????# # g #??????????????? | | ?? ?? ??? # uu #??????????????? | | ???? ??##### # u #??????????????? | | ???? ""??????# # #??????????????? | | ??? ""??????# # k #??????????????? | | ??? T"??????# #; ;;;#??????????????? | | ?? ""??????# ### ##??????????????? | | ??"" ????????# #?#### # #???????????????? | | ? "" ????????# #????########???????????????? | | ???"" ????????# #???????????????????????????? | | ????" ????????# T???????????????????????????? | | ????? ?????????# "???????????????????????????? | | ???????????????# ????????????????????????????? | | ???????????????? ????????????????????????????? | | ?????????????????? ????????????????????????????? | | ?????????????????????????????????????????????????? | | ?????????????????????????????????????????????????? | | ?????????????????????????????????????????????????? | | ?????????????????????????????????????????????????? | | ?????????????????????????????????????????????????? | | ?????????????????????????????????????????????????? | | ?????????????????????????????????????????????????? | | ?????????????????????????????????????????????????? | +----------------------------------------------------+ Best States ------------- Heat Dissipation 41 Energy Generation 19 Energy Capacity 450 Matter Stores 300 Matter Capacity 500 Sight Range 16 Robot Scan Range 15 Terrain Scan Density 110 Armor Coverage 150 Evasion (%) 50 Recoil Reduction 2 Item Schematics ----------------- Imp. Heat Sink | -9/Materials | Scanalyzed Robot Schematics ------------------ None Fabricated ------------ Nothing Repaired ---------- Nothing Studied --------- None Alien Tech Used ----------------- None Achievements -------------- Bumper Bots DATA ERROR: Steam Global Achievement% Hydra I Have A Map? Organ Harvest Physics Hates This One Trick There's More Where That Came From Challenges ------------ None Game ------ Seed JammingPulsarBooster Manual? 0 Play Time 00:24:55 Cumulative 5.6 hours Start 2026.03.22 @ 03:02:41 End 2026.03.22 @ 03:29:12 Sessions 1 Manual Loads 0 Difficulty Rogue Special Mode None Game No. 12 Rogue 9 Adventurer 3 Explorer 0 Win Type - Total 0 Types 0/0/0/0/0/0/0/0/0/0 Lore% 1 Gallery% 9 Achievement% 6 Wizard Run 0 Options --------- Layout 1 ASCII 0 Keyboard 0 Movement Mouse Keybinds 0 Fullscreen 1 Font 48/Smallcaps Map View 50x35 Zoom Use 0% Tactical HUD 0 Map Filters NONE Filters NONE Steam 1 RUN: 745c1a08-0df2-4d87-bb3d-2564ee6f55f7